[Event "Titled Tuesday Blitz February 07 Early 2023"]
[White "Fajdetic, Hrvoje"]
[Black "Jakubowska, Anna"]
[WhiteFideId "14501945"]
[BlackFideId "1121952"]
[WhiteElo "2151"]
[BlackElo "2139"]
[Result "1-0"]
[Round "11"]
[TimeControl "180+2"]
[Date "2023.02.07"]
[WhiteClock "0:00:09"]
[BlackClock "0:00:09"]

1. f4 {[%clk 0:01:31]}  f5 {[%clk 0:02:57]} 2. Nf3 {[%clk 0:01:30]}  Nf6 {[%clk 0:02:57]} 3. e3 {[%clk 0:01:29]}  g6 {[%clk 0:02:57]} 4. Be2 {[%clk 0:01:30]}  Bg7 {[%clk 0:02:57]} 5. Nc3 {[%clk 0:01:30]}  d6 {[%clk 0:02:57]} 6. b3 {[%clk 0:01:30]}  e5 {[%clk 0:02:57]} 7. fxe5 {[%clk 0:01:29]}  dxe5 {[%clk 0:02:48]} 8. Nxe5 {[%clk 0:01:28]}  Nd5 {[%clk 0:02:46]} 9. Nxd5 {[%clk 0:01:03]}  Qxd5 {[%clk 0:02:43]} 10. d4 {[%clk 0:00:58]}  Bxe5 {[%clk 0:02:26]} 11. dxe5 {[%clk 0:00:50]}  Qxe5 {[%clk 0:02:26]} 12. Qd4 {[%clk 0:00:49]}  Qxd4 {[%clk 0:02:06]} 13. exd4 {[%clk 0:00:50]}  O-O {[%clk 0:02:02]} 14. Bc4+ {[%clk 0:00:48]}  Kg7 {[%clk 0:02:02]} 15. Bb2 {[%clk 0:00:48]}  Re8+ {[%clk 0:02:01]} 16. Kf2 {[%clk 0:00:48]}  Bd7 {[%clk 0:01:41]} 17. Rae1 {[%clk 0:00:43]}  Na6 {[%clk 0:01:12]} 18. d5+ {[%clk 0:00:36]}  Kh6 {[%clk 0:01:11]} 19. Bc1+ {[%clk 0:00:31]}  g5 {[%clk 0:01:10]} 20. h4 {[%clk 0:00:29]}  f4 {[%clk 0:01:00]} 21. hxg5+ {[%clk 0:00:28]}  Kxg5 {[%clk 0:01:01]} 22. Rxh7 {[%clk 0:00:26]}  Rxe1 {[%clk 0:01:00]} 23. Kxe1 {[%clk 0:00:27]}  Bf5 {[%clk 0:00:56]} 24. Rh2 {[%clk 0:00:17]}  Nb4 {[%clk 0:00:54]} 25. g3 {[%clk 0:00:16]}  Nxc2+ {[%clk 0:00:53]} 26. Kf2 {[%clk 0:00:14]}  Ne3 {[%clk 0:00:41]} 27. gxf4+ {[%clk 0:00:14]}  Kxf4 {[%clk 0:00:41]} 28. Bxe3+ {[%clk 0:00:15]}  Ke5 {[%clk 0:00:40]} 29. Rh5 {[%clk 0:00:15]}  Kf6 {[%clk 0:00:37]} 30. Rh6+ {[%clk 0:00:13]}  Kg7 {[%clk 0:00:37]} 31. Rh5 {[%clk 0:00:13]}  Rf8 {[%clk 0:00:36]} 32. Rg5+ {[%clk 0:00:12]}  Kh7 {[%clk 0:00:35]} 33. Kg3 {[%clk 0:00:12]}  Bg6 {[%clk 0:00:33]} 34. Bd4 {[%clk 0:00:10]}  Kh6 {[%clk 0:00:28]} 35. Rg4 {[%clk 0:00:10]}  Re8 {[%clk 0:00:26]} 36. Rh4+ {[%clk 0:00:09]}  Kg5 {[%clk 0:00:26]} 37. Rg4+ {[%clk 0:00:08]}  Kh6 {[%clk 0:00:26]} 38. Kf2 {[%clk 0:00:07]}  Rf8+ {[%clk 0:00:25]} 39. Kg2 {[%clk 0:00:06]}  Re8 {[%clk 0:00:22]} 40. Kg3 {[%clk 0:00:05]}  Rd8 {[%clk 0:00:18]} 41. Be3+ {[%clk 0:00:04]}  Kh7 {[%clk 0:00:17]} 42. Bd4 {[%clk 0:00:04]}  c6 {[%clk 0:00:17]} 43. dxc6 {[%clk 0:00:03]}  bxc6 {[%clk 0:00:15]} 44. Rh4+ {[%clk 0:00:04]}  Bh5 {[%clk 0:00:15]} 45. Rxh5+ {[%clk 0:00:04]}  Kg6 {[%clk 0:00:16]} 46. Rh4 {[%clk 0:00:04]}  c5 {[%clk 0:00:16]} 47. Rg4+ {[%clk 0:00:05]}  Kf5 {[%clk 0:00:17]} 48. Bd3+ {[%clk 0:00:05]}  Ke6 {[%clk 0:00:17]} 49. Be3 {[%clk 0:00:04]}  Rxd3 {[%clk 0:00:17]} 50. Kf3 {[%clk 0:00:05]}  Kd6 {[%clk 0:00:16]} 51. Re4 {[%clk 0:00:06]}  Kc6 {[%clk 0:00:16]} 52. Rc4 {[%clk 0:00:06]}  Rd5 {[%clk 0:00:16]} 53. b4 {[%clk 0:00:06]}  Rf5+ {[%clk 0:00:11]} 54. Ke4 {[%clk 0:00:05]}  Rf8 {[%clk 0:00:11]} 55. Rxc5+ {[%clk 0:00:06]}  Kb7 {[%clk 0:00:11]} 56. a4 {[%clk 0:00:06]}  Re8+ {[%clk 0:00:12]} 57. Re5 {[%clk 0:00:07]}  Rd8 {[%clk 0:00:12]} 58. a5 {[%clk 0:00:07]}  Rc8 {[%clk 0:00:12]} 59. b5 {[%clk 0:00:07]}  Rc4+ {[%clk 0:00:12]} 60. Bd4 {[%clk 0:00:08]}  Ra4 {[%clk 0:00:11]} 61. a6+ {[%clk 0:00:09]}  Kb8 {[%clk 0:00:11]} 62. Re8+ {[%clk 0:00:07]}  Kc7 {[%clk 0:00:12]} 63. Re7+ {[%clk 0:00:07]}  Kd6 {[%clk 0:00:12]} 64. Rxa7 {[%clk 0:00:08]}  Ra5 {[%clk 0:00:12]} 65. Rb7 {[%clk 0:00:09]}  Ra4 {[%clk 0:00:10]} 66. a7 {[%clk 0:00:09]}  Ra3 {[%clk 0:00:09]} 67. b6 {[%clk 0:00:09]}  Kc6 {[%clk 0:00:09]} 68. Rc7+ {[%clk 0:00:09]}  Kd6 {[%clk 0:00:09]} 69. Rc8 {[%clk 0:00:09]}  Ra4 {[%clk 0:00:08]} 70. a8=Q {[%clk 0:00:09]}  Rxa8 {[%clk 0:00:09]} 71. Rxa8 {[%clk 0:00:09]} 1-0


[Site "https://www.chess.com"]

[Event "Titled Tuesday Blitz February 07 Early 2023"]
[White "Goncalves, Davi Sulzbacher"]
[Black "Dzhaparov, Medet"]
[WhiteFideId "2154510"]
[BlackFideId "13803689"]
[WhiteElo "2282"]
[BlackElo "1578"]
[Result "1-0"]
[Round "11"]
[TimeControl "180+2"]
[Date "2023.02.07"]
[WhiteClock "0:00:58"]
[BlackClock "0:00:13"]

1. d4 {[%clk 0:02:58]}  Nf6 {[%clk 0:02:57]} 2. c4 {[%clk 0:02:58]}  g6 {[%clk 0:02:57]} 3. Nc3 {[%clk 0:02:59]}  d5 {[%clk 0:02:58]} 4. cxd5 {[%clk 0:02:59]}  Nxd5 {[%clk 0:02:59]} 5. e4 {[%clk 0:02:59]}  Nxc3 {[%clk 0:02:59]} 6. bxc3 {[%clk 0:03:00]}  Bg7 {[%clk 0:02:59]} 7. Bc4 {[%clk 0:03:01]}  c5 {[%clk 0:02:59]} 8. Ne2 {[%clk 0:03:00]}  Nc6 {[%clk 0:02:59]} 9. Be3 {[%clk 0:03:00]}  O-O {[%clk 0:02:58]} 10. h4 {[%clk 0:03:00]}  Qa5 {[%clk 0:02:42]} 11. Kf1 {[%clk 0:02:53]}  cxd4 {[%clk 0:02:35]} 12. cxd4 {[%clk 0:02:54]}  b5 {[%clk 0:02:34]} 13. Bd5 {[%clk 0:02:52]}  Bb7 {[%clk 0:02:34]} 14. h5 {[%clk 0:02:52]}  e6 {[%clk 0:02:31]} 15. Bb3 {[%clk 0:02:44]}  Ne7 {[%clk 0:02:28]} 16. Bg5 {[%clk 0:02:27]}  Rfe8 {[%clk 0:02:21]} 17. e5 {[%clk 0:02:24]}  Qb6 {[%clk 0:02:11]} 18. Qd3 {[%clk 0:02:22]}  Qc6 {[%clk 0:02:10]} 19. Qh3 {[%clk 0:02:21]}  h6 {[%clk 0:02:03]} 20. Bxe7 {[%clk 0:01:45]}  Rxe7 {[%clk 0:02:01]} 21. hxg6 {[%clk 0:01:38]}  fxg6 {[%clk 0:02:02]} 22. Rc1 {[%clk 0:01:37]}  Qd7 {[%clk 0:01:57]} 23. Nf4 {[%clk 0:01:33]}  Kf7 {[%clk 0:01:13]} 24. Qg4 {[%clk 0:01:31]}  Be4 {[%clk 0:00:56]} 25. Nxe6 {[%clk 0:01:14]}  Bd3+ {[%clk 0:00:55]} 26. Kg1 {[%clk 0:01:08]}  Rxe6 {[%clk 0:00:55]} 27. Qf3+ {[%clk 0:01:08]}  Bf5 {[%clk 0:00:16]} 28. Qxa8 {[%clk 0:01:07]}  Ke7 {[%clk 0:00:15]} 29. Qb8 {[%clk 0:01:00]}  h5 {[%clk 0:00:13]} 30. Rc7 {[%clk 0:00:58]} 1-0


[Site "https://www.chess.com"]

[Event "Titled Tuesday Blitz February 07 Early 2023"]
[White "Begunov, Konstantin"]
[Black "Fabris, Alberto"]
[WhiteFideId "4118510"]
[BlackFideId "801348"]
[WhiteElo "2325"]
[BlackElo "2230"]
[Result "1-0"]
[Round "11"]
[TimeControl "180+2"]
[Date "2023.02.07"]
[WhiteClock "0:00:22"]
[BlackClock "0:00:12"]

1. d4 {[%clk 0:03:00]}  Nf6 {[%clk 0:02:59]} 2. c4 {[%clk 0:02:59]}  e6 {[%clk 0:02:59]} 3. Nf3 {[%clk 0:02:59]}  d5 {[%clk 0:02:58]} 4. Nc3 {[%clk 0:02:59]}  c6 {[%clk 0:02:58]} 5. cxd5 {[%clk 0:02:58]}  exd5 {[%clk 0:02:58]} 6. Bg5 {[%clk 0:02:58]}  Be7 {[%clk 0:02:58]} 7. Qc2 {[%clk 0:02:58]}  O-O {[%clk 0:02:56]} 8. e3 {[%clk 0:02:58]}  Nbd7 {[%clk 0:02:56]} 9. Bd3 {[%clk 0:02:58]}  Re8 {[%clk 0:02:56]} 10. O-O {[%clk 0:02:58]}  Nf8 {[%clk 0:02:49]} 11. Rab1 {[%clk 0:02:57]}  Ne4 {[%clk 0:02:31]} 12. Bxe4 {[%clk 0:02:41]}  dxe4 {[%clk 0:02:28]} 13. Bxe7 {[%clk 0:02:13]}  Qxe7 {[%clk 0:02:26]} 14. Nd2 {[%clk 0:02:12]}  f5 {[%clk 0:02:21]} 15. d5 {[%clk 0:02:04]}  Bd7 {[%clk 0:02:13]} 16. Nc4 {[%clk 0:02:02]}  Qf6 {[%clk 0:02:03]} 17. Rbd1 {[%clk 0:01:54]}  Rad8 {[%clk 0:01:56]} 18. Rd2 {[%clk 0:01:47]}  Ng6 {[%clk 0:01:49]} 19. Rfd1 {[%clk 0:01:44]}  c5 {[%clk 0:01:48]} 20. d6 {[%clk 0:01:34]}  Ne5 {[%clk 0:01:42]} 21. Nd5 {[%clk 0:01:34]}  Qg5 {[%clk 0:01:33]} 22. Nxe5 {[%clk 0:01:12]}  Rxe5 {[%clk 0:01:31]} 23. Qxc5 {[%clk 0:01:12]}  Kh8 {[%clk 0:01:16]} 24. Qc7 {[%clk 0:01:10]}  Bc6 {[%clk 0:01:07]} 25. Ne7 {[%clk 0:01:04]}  Rf8 {[%clk 0:00:57]} 26. Nxc6 {[%clk 0:00:45]}  bxc6 {[%clk 0:00:55]} 27. d7 {[%clk 0:00:46]}  Rd5 {[%clk 0:00:51]} 28. Qxc6 {[%clk 0:00:20]}  Rxd2 {[%clk 0:00:45]} 29. Rxd2 {[%clk 0:00:21]}  h5 {[%clk 0:00:27]} 30. Qd5 {[%clk 0:00:21]}  Rd8 {[%clk 0:00:26]} 31. Qe5 {[%clk 0:00:19]}  Kh7 {[%clk 0:00:23]} 32. g3 {[%clk 0:00:19]}  h4 {[%clk 0:00:18]} 33. Rd5 {[%clk 0:00:18]}  g6 {[%clk 0:00:16]} 34. Qf4 {[%clk 0:00:17]}  Qxf4 {[%clk 0:00:15]} 35. gxf4 {[%clk 0:00:18]}  Kg7 {[%clk 0:00:14]} 36. Kg2 {[%clk 0:00:18]}  Kf6 {[%clk 0:00:15]} 37. Kh3 {[%clk 0:00:19]}  Ke6 {[%clk 0:00:14]} 38. Rd4 {[%clk 0:00:19]}  Rxd7 {[%clk 0:00:13]} 39. Rxd7 {[%clk 0:00:20]}  Kxd7 {[%clk 0:00:14]} 40. Kxh4 {[%clk 0:00:21]}  Ke6 {[%clk 0:00:13]} 41. Kg5 {[%clk 0:00:22]}  Kf7 {[%clk 0:00:13]} 42. h4 {[%clk 0:00:21]}  Kg7 {[%clk 0:00:12]} 43. b4 {[%clk 0:00:22]} 1-0


[Site "https://www.chess.com"]

[Event "Titled Tuesday Blitz February 07 Early 2023"]
[White "Hajiyev, Kanan"]
[Black "Antonio, Jorge Carlos"]
[WhiteFideId "13404148"]
[BlackFideId "113190"]
[WhiteElo "2197"]
[BlackElo "2277"]
[Result "1-0"]
[Round "11"]
[TimeControl "180+2"]
[Date "2023.02.07"]
[WhiteClock "0:02:25"]
[BlackClock "0:01:57"]

1. d4 {[%clk 0:02:58]}  d5 {[%clk 0:02:59]} 2. Nf3 {[%clk 0:02:59]}  c6 {[%clk 0:02:58]} 3. c4 {[%clk 0:03:00]}  e6 {[%clk 0:02:57]} 4. cxd5 {[%clk 0:03:00]}  exd5 {[%clk 0:02:57]} 5. Nc3 {[%clk 0:03:01]}  Nf6 {[%clk 0:02:57]} 6. Bg5 {[%clk 0:03:02]}  Be7 {[%clk 0:02:57]} 7. Qc2 {[%clk 0:03:03]}  h6 {[%clk 0:02:57]} 8. Bf4 {[%clk 0:03:02]}  Bg4 {[%clk 0:02:56]} 9. Ne5 {[%clk 0:03:01]}  Be6 {[%clk 0:02:52]} 10. e3 {[%clk 0:03:01]}  Nbd7 {[%clk 0:02:52]} 11. Bd3 {[%clk 0:03:01]}  Nxe5 {[%clk 0:02:52]} 12. Bxe5 {[%clk 0:03:00]}  O-O {[%clk 0:02:50]} 13. O-O {[%clk 0:02:59]}  Nd7 {[%clk 0:02:50]} 14. Bg3 {[%clk 0:02:59]}  Nf6 {[%clk 0:02:49]} 15. h3 {[%clk 0:03:00]}  Bd6 {[%clk 0:02:49]} 16. Bxd6 {[%clk 0:03:00]}  Qxd6 {[%clk 0:02:48]} 17. Rab1 {[%clk 0:03:01]}  a6 {[%clk 0:02:46]} 18. Na4 {[%clk 0:02:59]}  Nd7 {[%clk 0:02:43]} 19. Rfc1 {[%clk 0:02:58]}  Qe7 {[%clk 0:02:41]} 20. Nc5 {[%clk 0:02:57]}  Nxc5 {[%clk 0:02:40]} 21. Qxc5 {[%clk 0:02:58]}  Qg5 {[%clk 0:02:39]} 22. Kh2 {[%clk 0:02:53]}  f5 {[%clk 0:02:37]} 23. Qd6 {[%clk 0:02:48]}  Rf6 {[%clk 0:02:35]} 24. Qf4 {[%clk 0:02:40]}  Qxf4+ {[%clk 0:02:29]} 25. exf4 {[%clk 0:02:40]}  Bf7 {[%clk 0:02:25]} 26. Re1 {[%clk 0:02:41]}  Re8 {[%clk 0:02:24]} 27. Re5 {[%clk 0:02:41]}  Rxe5 {[%clk 0:02:15]} 28. fxe5 {[%clk 0:02:40]}  Re6 {[%clk 0:02:10]} 29. Bxf5 {[%clk 0:02:40]}  Re8 {[%clk 0:02:07]} 30. b4 {[%clk 0:02:35]}  Be6 {[%clk 0:02:07]} 31. Bxe6+ {[%clk 0:02:33]}  Rxe6 {[%clk 0:02:06]} 32. f4 {[%clk 0:02:34]}  g6 {[%clk 0:02:06]} 33. g4 {[%clk 0:02:34]}  Kf7 {[%clk 0:02:05]} 34. f5 {[%clk 0:02:33]}  gxf5 {[%clk 0:02:04]} 35. gxf5 {[%clk 0:02:34]}  Re8 {[%clk 0:02:04]} 36. Rg1 {[%clk 0:02:32]}  Rc8 {[%clk 0:02:02]} 37. f6 {[%clk 0:02:28]}  b6 {[%clk 0:01:58]} 38. Rg7+ {[%clk 0:02:24]}  Ke6 {[%clk 0:01:57]} 39. Re7+ {[%clk 0:02:24]}  Kf5 {[%clk 0:01:57]} 40. f7 {[%clk 0:02:25]}  Ke4 {[%clk 0:01:57]} 41. Re8 {[%clk 0:02:25]} 1-0


[Site "https://www.chess.com"]

[Event "Titled Tuesday Blitz February 07 Early 2023"]
[White "Fan_Of_Chucky"]
[Black "Gatterer, Florian"]
[BlackFideId "811688"]
[WhiteElo "2269"]
[BlackElo "2170"]
[Result "1-0"]
[Round "11"]
[TimeControl "180+2"]
[Date "2023.02.07"]
[WhiteClock "0:00:19"]
[BlackClock "0:00:20"]

1. d4 {[%clk 0:02:54]}  d6 {[%clk 0:02:59]} 2. c4 {[%clk 0:02:55]}  Nf6 {[%clk 0:02:58]} 3. Nf3 {[%clk 0:02:53]}  g6 {[%clk 0:02:58]} 4. g3 {[%clk 0:02:51]}  Bg7 {[%clk 0:02:58]} 5. Bg2 {[%clk 0:02:51]}  O-O {[%clk 0:02:59]} 6. O-O {[%clk 0:02:50]}  c5 {[%clk 0:02:59]} 7. dxc5 {[%clk 0:02:37]}  dxc5 {[%clk 0:02:58]} 8. Bf4 {[%clk 0:02:35]}  Nc6 {[%clk 0:02:55]} 9. Nc3 {[%clk 0:02:30]}  Be6 {[%clk 0:02:52]} 10. Ne5 {[%clk 0:02:25]}  Nxe5 {[%clk 0:02:44]} 11. Bxe5 {[%clk 0:02:26]}  Qb6 {[%clk 0:02:38]} 12. Qb3 {[%clk 0:02:21]}  Ng4 {[%clk 0:02:26]} 13. Bxg7 {[%clk 0:02:10]}  Kxg7 {[%clk 0:02:26]} 14. Bxb7 {[%clk 0:02:11]}  Qxb3 {[%clk 0:02:18]} 15. axb3 {[%clk 0:02:12]}  Rab8 {[%clk 0:02:17]} 16. Rxa7 {[%clk 0:02:07]}  Rfd8 {[%clk 0:02:16]} 17. Bd5 {[%clk 0:02:03]}  Bxd5 {[%clk 0:02:07]} 18. Nxd5 {[%clk 0:02:04]}  Rxb3 {[%clk 0:01:56]} 19. Rxe7 {[%clk 0:02:02]}  Rxb2 {[%clk 0:01:56]} 20. Ra1 {[%clk 0:01:54]}  Nf6 {[%clk 0:01:29]} 21. Nxf6 {[%clk 0:01:44]}  Kxf6 {[%clk 0:01:28]} 22. Raa7 {[%clk 0:01:42]}  Rf8 {[%clk 0:01:17]} 23. Rec7 {[%clk 0:01:38]}  Rxe2 {[%clk 0:01:15]} 24. Rxc5 {[%clk 0:01:36]}  h5 {[%clk 0:01:11]} 25. h4 {[%clk 0:01:33]}  Rc2 {[%clk 0:01:01]} 26. Rd7 {[%clk 0:01:28]}  Re8 {[%clk 0:00:56]} 27. Rcc7 {[%clk 0:01:24]}  Rf8 {[%clk 0:00:50]} 28. c5 {[%clk 0:01:15]}  Ke6 {[%clk 0:00:50]} 29. Rd6+ {[%clk 0:01:09]}  Ke5 {[%clk 0:00:42]} 30. Re7+ {[%clk 0:01:05]}  Kf5 {[%clk 0:00:42]} 31. c6 {[%clk 0:01:03]}  Rc8 {[%clk 0:00:38]} 32. Rxf7+ {[%clk 0:01:00]}  Ke5 {[%clk 0:00:38]} 33. Rxg6 {[%clk 0:00:58]}  R8xc6 {[%clk 0:00:38]} 34. Rxc6 {[%clk 0:00:57]}  Rxc6 {[%clk 0:00:38]} 35. Rh7 {[%clk 0:00:57]}  Kf5 {[%clk 0:00:38]} 36. Rxh5+ {[%clk 0:00:57]}  Kg4 {[%clk 0:00:38]} 37. Re5 {[%clk 0:00:49]}  Kh3 {[%clk 0:00:36]} 38. Re1 {[%clk 0:00:47]}  Rc5 {[%clk 0:00:33]} 39. Ra1 {[%clk 0:00:41]}  Rb5 {[%clk 0:00:32]} 40. Kf1 {[%clk 0:00:39]}  Rc5 {[%clk 0:00:33]} 41. Ke2 {[%clk 0:00:39]}  Rf5 {[%clk 0:00:33]} 42. Ra4 {[%clk 0:00:36]}  Re5+ {[%clk 0:00:32]} 43. Kf3 {[%clk 0:00:35]}  Rb5 {[%clk 0:00:32]} 44. Re4 {[%clk 0:00:35]}  Rb3+ {[%clk 0:00:32]} 45. Re3 {[%clk 0:00:35]}  Rb6 {[%clk 0:00:32]} 46. h5 {[%clk 0:00:34]}  Rf6+ {[%clk 0:00:31]} 47. Ke2 {[%clk 0:00:31]}  Kg4 {[%clk 0:00:31]} 48. Re4+ {[%clk 0:00:25]}  Kxh5 {[%clk 0:00:31]} 49. Rf4 {[%clk 0:00:26]}  Re6+ {[%clk 0:00:30]} 50. Kf3 {[%clk 0:00:27]}  Kg5 {[%clk 0:00:31]} 51. Ra4 {[%clk 0:00:26]}  Rf6+ {[%clk 0:00:30]} 52. Kg2 {[%clk 0:00:26]}  Rc6 {[%clk 0:00:30]} 53. f3 {[%clk 0:00:25]}  Rc5 {[%clk 0:00:28]} 54. Kh3 {[%clk 0:00:25]}  Rb5 {[%clk 0:00:28]} 55. g4 {[%clk 0:00:25]}  Rb1 {[%clk 0:00:26]} 56. Kg3 {[%clk 0:00:26]}  Rg1+ {[%clk 0:00:25]} 57. Kf2 {[%clk 0:00:26]}  Rb1 {[%clk 0:00:25]} 58. Ra5+ {[%clk 0:00:27]}  Kg6 {[%clk 0:00:24]} 59. Kg3 {[%clk 0:00:26]}  Rg1+ {[%clk 0:00:23]} 60. Kf4 {[%clk 0:00:27]}  Rb1 {[%clk 0:00:24]} 61. Ra6+ {[%clk 0:00:27]}  Kg7 {[%clk 0:00:24]} 62. g5 {[%clk 0:00:26]}  Rb4+ {[%clk 0:00:24]} 63. Kf5 {[%clk 0:00:27]}  Rb5+ {[%clk 0:00:24]} 64. Kg4 {[%clk 0:00:26]}  Rb1 {[%clk 0:00:24]} 65. f4 {[%clk 0:00:26]}  Rb5 {[%clk 0:00:24]} 66. f5 {[%clk 0:00:25]}  Rc5 {[%clk 0:00:24]} 67. Ra7+ {[%clk 0:00:21]}  Kg8 {[%clk 0:00:24]} 68. g6 {[%clk 0:00:22]}  Rb5 {[%clk 0:00:22]} 69. f6 {[%clk 0:00:19]}  Kf8 {[%clk 0:00:20]} 70. Ra8+ {[%clk 0:00:19]} 1-0


[Site "https://www.chess.com"]

[Event "Titled Tuesday Blitz February 07 Early 2023"]
[White "Alhadad, Mahmoud"]
[Black "Nikologorsky, Matfei"]
[WhiteFideId "11501863"]
[BlackFideId "24102474"]
[WhiteElo "1840"]
[BlackElo "2182"]
[Result "1-0"]
[Round "11"]
[TimeControl "180+2"]
[Date "2023.02.07"]
[WhiteClock "0:00:12"]
[BlackClock "0:00:06"]

1. e4 {[%clk 0:03:00]}  c5 {[%clk 0:02:57]} 2. Nc3 {[%clk 0:03:01]}  e6 {[%clk 0:02:56]} 3. f4 {[%clk 0:02:59]}  d5 {[%clk 0:02:56]} 4. exd5 {[%clk 0:02:57]}  exd5 {[%clk 0:02:56]} 5. Bb5+ {[%clk 0:02:56]}  Nc6 {[%clk 0:02:46]} 6. Nf3 {[%clk 0:02:54]}  Nf6 {[%clk 0:02:44]} 7. O-O {[%clk 0:02:48]}  Be7 {[%clk 0:02:43]} 8. d3 {[%clk 0:02:46]}  O-O {[%clk 0:02:38]} 9. Bxc6 {[%clk 0:02:46]}  bxc6 {[%clk 0:02:39]} 10. Ne5 {[%clk 0:02:46]}  Qc7 {[%clk 0:02:33]} 11. Qe1 {[%clk 0:02:38]}  Bd6 {[%clk 0:02:31]} 12. Qf2 {[%clk 0:02:32]}  Rb8 {[%clk 0:02:27]} 13. b3 {[%clk 0:02:29]}  d4 {[%clk 0:02:16]} 14. Na4 {[%clk 0:02:23]}  Be6 {[%clk 0:02:02]} 15. Ba3 {[%clk 0:02:22]}  Bxe5 {[%clk 0:01:58]} 16. fxe5 {[%clk 0:02:22]}  Ng4 {[%clk 0:01:59]} 17. Qg3 {[%clk 0:02:10]}  Ne3 {[%clk 0:01:53]} 18. Rf2 {[%clk 0:02:07]}  Rb5 {[%clk 0:01:29]} 19. Nxc5 {[%clk 0:01:58]}  Bd5 {[%clk 0:01:26]} 20. Na4 {[%clk 0:01:35]}  Re8 {[%clk 0:01:22]} 21. Bc5 {[%clk 0:01:33]}  Rxc5 {[%clk 0:01:05]} 22. Nxc5 {[%clk 0:01:32]}  Rxe5 {[%clk 0:01:05]} 23. Nd7 {[%clk 0:01:23]}  Qxd7 {[%clk 0:00:40]} 24. Qxe5 {[%clk 0:01:20]}  f6 {[%clk 0:00:27]} 25. Qxd4 {[%clk 0:01:15]}  Ng4 {[%clk 0:00:22]} 26. Re2 {[%clk 0:01:00]}  h5 {[%clk 0:00:19]} 27. c4 {[%clk 0:00:57]}  Qc7 {[%clk 0:00:19]} 28. g3 {[%clk 0:00:54]}  Bf7 {[%clk 0:00:17]} 29. Rae1 {[%clk 0:00:43]}  Ne5 {[%clk 0:00:14]} 30. Rxe5 {[%clk 0:00:40]}  fxe5 {[%clk 0:00:15]} 31. Qxe5 {[%clk 0:00:41]}  Qb6+ {[%clk 0:00:15]} 32. d4 {[%clk 0:00:40]}  Qa6 {[%clk 0:00:15]} 33. Re2 {[%clk 0:00:38]}  Qa3 {[%clk 0:00:14]} 34. Rf2 {[%clk 0:00:35]}  Qc1+ {[%clk 0:00:14]} 35. Kg2 {[%clk 0:00:34]}  Bg6 {[%clk 0:00:14]} 36. Qb8+ {[%clk 0:00:33]}  Kh7 {[%clk 0:00:14]} 37. Qf4 {[%clk 0:00:26]}  Qb1 {[%clk 0:00:13]} 38. g4 {[%clk 0:00:24]}  Be4+ {[%clk 0:00:13]} 39. Kg3 {[%clk 0:00:22]}  Qg1+ {[%clk 0:00:13]} 40. Kh4 {[%clk 0:00:21]}  hxg4 {[%clk 0:00:09]} 41. Qxe4+ {[%clk 0:00:15]}  g6 {[%clk 0:00:09]} 42. Qe7+ {[%clk 0:00:14]}  Kh6 {[%clk 0:00:08]} 43. Qg5+ {[%clk 0:00:13]}  Kg7 {[%clk 0:00:08]} 44. Qe5+ {[%clk 0:00:13]}  Kh6 {[%clk 0:00:07]} 45. Qe3+ {[%clk 0:00:13]}  Kg7 {[%clk 0:00:06]} 46. Rf7+ {[%clk 0:00:12]} 1-0


[Site "https://www.chess.com"]

[Event "Titled Tuesday Blitz February 07 Early 2023"]
[White "Mendez Machado, Andre"]
[Black "Alfaro, William"]
[WhiteFideId "6603793"]
[BlackFideId "6100457"]
[WhiteElo "1974"]
[BlackElo "2134"]
[Result "1-0"]
[Round "11"]
[TimeControl "180+2"]
[Date "2023.02.07"]
[WhiteClock "0:00:13"]
[BlackClock "0:00:57"]

1. e4 {[%clk 0:03:00]}  c5 {[%clk 0:02:56]} 2. Nc3 {[%clk 0:03:00]}  a6 {[%clk 0:02:56]} 3. d4 {[%clk 0:03:00]}  cxd4 {[%clk 0:02:55]} 4. Qxd4 {[%clk 0:03:01]}  b5 {[%clk 0:02:55]} 5. Qe3 {[%clk 0:02:56]}  Bb7 {[%clk 0:02:54]} 6. Bd3 {[%clk 0:02:55]}  Nf6 {[%clk 0:02:52]} 7. Nf3 {[%clk 0:02:47]}  d6 {[%clk 0:02:50]} 8. O-O {[%clk 0:02:42]}  e6 {[%clk 0:02:47]} 9. b3 {[%clk 0:02:40]}  Be7 {[%clk 0:02:40]} 10. Bb2 {[%clk 0:02:40]}  O-O {[%clk 0:02:41]} 11. h3 {[%clk 0:02:35]}  Nbd7 {[%clk 0:02:41]} 12. Rad1 {[%clk 0:02:19]}  Qb6 {[%clk 0:02:39]} 13. Qg5 {[%clk 0:02:07]}  Qc5 {[%clk 0:02:35]} 14. Qg3 {[%clk 0:01:59]}  Nh5 {[%clk 0:02:25]} 15. Qh2 {[%clk 0:01:56]}  e5 {[%clk 0:02:20]} 16. Ne2 {[%clk 0:01:19]}  g6 {[%clk 0:02:17]} 17. g4 {[%clk 0:01:12]}  Ng7 {[%clk 0:02:16]} 18. c4 {[%clk 0:00:58]}  b4 {[%clk 0:02:14]} 19. Bc1 {[%clk 0:00:46]}  Ne6 {[%clk 0:02:05]} 20. Be3 {[%clk 0:00:45]}  Qc8 {[%clk 0:02:01]} 21. Bh6 {[%clk 0:00:38]}  Rd8 {[%clk 0:01:59]} 22. Nd2 {[%clk 0:00:30]}  Ndc5 {[%clk 0:01:59]} 23. Bb1 {[%clk 0:00:28]}  a5 {[%clk 0:01:57]} 24. f4 {[%clk 0:00:27]}  exf4 {[%clk 0:01:33]} 25. Nxf4 {[%clk 0:00:28]}  Ng7 {[%clk 0:01:28]} 26. Nd5 {[%clk 0:00:25]}  Bxd5 {[%clk 0:01:15]} 27. exd5 {[%clk 0:00:26]}  Qd7 {[%clk 0:01:07]} 28. Qf2 {[%clk 0:00:25]}  Rf8 {[%clk 0:01:06]} 29. Nf3 {[%clk 0:00:21]}  a4 {[%clk 0:01:05]} 30. Nd4 {[%clk 0:00:20]}  axb3 {[%clk 0:01:04]} 31. axb3 {[%clk 0:00:21]}  Ra2 {[%clk 0:01:04]} 32. Bxa2 {[%clk 0:00:20]}  Bd8 {[%clk 0:00:59]} 33. Bb1 {[%clk 0:00:16]}  Qa7 {[%clk 0:00:59]} 34. Nc6 {[%clk 0:00:16]}  Qa3 {[%clk 0:00:58]} 35. Nxd8 {[%clk 0:00:15]}  Qxb3 {[%clk 0:00:58]} 36. Bxg7 {[%clk 0:00:13]}  Kxg7 {[%clk 0:00:57]} 37. Ne6+ {[%clk 0:00:13]} 1-0


[Site "https://www.chess.com"]

[Event "Titled Tuesday Blitz February 07 Early 2023"]
[White "Good, Daniel"]
[Black "Miszler, Levente"]
[WhiteFideId "1302388"]
[BlackFideId "763276"]
[WhiteElo "2141"]
[BlackElo "2271"]
[Result "0-1"]
[Round "11"]
[TimeControl "180+2"]
[Date "2023.02.07"]
[WhiteClock "0:00:11"]
[BlackClock "0:01:39"]

1. e4 {[%clk 0:03:00]}  c6 {[%clk 0:02:55]} 2. d4 {[%clk 0:02:59]}  d5 {[%clk 0:02:56]} 3. e5 {[%clk 0:03:00]}  Bf5 {[%clk 0:02:54]} 4. Nc3 {[%clk 0:02:52]}  e6 {[%clk 0:02:49]} 5. g4 {[%clk 0:02:43]}  Bg6 {[%clk 0:02:49]} 6. Nh3 {[%clk 0:02:40]}  a6 {[%clk 0:02:40]} 7. Nf4 {[%clk 0:02:38]}  c5 {[%clk 0:02:40]} 8. Be3 {[%clk 0:02:29]}  cxd4 {[%clk 0:02:38]} 9. Bxd4 {[%clk 0:02:30]}  Nc6 {[%clk 0:02:39]} 10. h4 {[%clk 0:02:27]}  h5 {[%clk 0:02:25]} 11. Nxg6 {[%clk 0:02:02]}  fxg6 {[%clk 0:02:26]} 12. Bd3 {[%clk 0:02:02]}  Nge7 {[%clk 0:02:19]} 13. Ne2 {[%clk 0:01:56]}  hxg4 {[%clk 0:02:10]} 14. c3 {[%clk 0:00:57]}  Nf5 {[%clk 0:02:07]} 15. Nf4 {[%clk 0:00:48]}  Rxh4 {[%clk 0:02:06]} 16. Rxh4 {[%clk 0:00:42]}  Qxh4 {[%clk 0:02:07]} 17. Nxe6 {[%clk 0:00:34]}  Kf7 {[%clk 0:01:57]} 18. Nc7 {[%clk 0:00:18]}  Ncxd4 {[%clk 0:01:56]} 19. cxd4 {[%clk 0:00:16]}  Bb4+ {[%clk 0:01:54]} 20. Ke2 {[%clk 0:00:13]}  Nxd4+ {[%clk 0:01:50]} 21. Ke3 {[%clk 0:00:13]}  Qg5+ {[%clk 0:01:40]} 22. Kxd4 {[%clk 0:00:13]}  Qf4+ {[%clk 0:01:39]} 23. Kxd5 {[%clk 0:00:11]}  Rd8# {[%clk 0:01:39]} 0-1


[Site "https://www.chess.com"]